fUSD/lending_fUSD_20250630
["ID","MTS","AMOUNT","RATE_DAILY","PERIOD"]
[368673461,1751291432276,-150.0,0.00013834,2]
[368673462,1751291432298,-6318.1530548,0.00013897,2]
[368673463,1751291432320,-207.4,0.00013897,2]
[368673464,1751291432349,-299.63928852,0.00013897,2]
[368673465,1751291432388,-5102.3917681,0.00013898,2]
[368673466,1751291432424,-4098.4012355,0.00013898,2]
[368673467,1751291432458,-667.62153999,0.00013899,2]
[368673468,1751291432481,-150.0,0.00013907,2]
[368673470,1751291432491,-150.0,0.00013925,2]
[368673472,1751291432501,-299.63928847,0.00013928,2]
[368673473,1751291432510,-667.62153993,0.0001393,2]
[368673475,1751291432519,-150.0,0.00013937,2]
[368673477,1751291432529,-150.0,0.0001394,2]
[368673478,1751291432538,-150.99,0.00013941,2]
[368673480,1751291432547,-299.63928847,0.00013958,2]
[368673482,1751291432556,-667.62153993,0.00013961,2]
[368673483,1751291432566,-150.0,0.00013969,2]
[368673485,1751291432576,-1068.15343176,0.0001397,2]
[368673487,1751291432585,-500.0,0.00013973,2]
[368673488,1751291432595,-500.0,0.00013973,2]
[368673490,1751291432604,-501.20639875,0.00013973,2]
[368673492,1751291432613,-521.98636127,0.00013973,2]
[368673493,1751291432623,-500.0,0.00013973,2]
[368673495,1751291432632,-503.0,0.00013973,2]
[368673497,1751291432642,-150.0,0.00013973,2]
[368673498,1751291432651,-150.0,0.00013978,2]
[368673499,1751291432660,-150.0,0.00013983,2]
[368673500,1751291432670,-151.0,0.00013984,2]
[368673501,1751291432679,-151.0,0.00013984,2]
[368673502,1751291432688,-151.0,0.00013984,2]
[368673503,1751291432698,-151.0,0.00013984,2]
[368673504,1751291432708,-151.0,0.00013984,2]
[368673505,1751291432717,-151.0,0.00013984,2]
[368673506,1751291432727,-151.0,0.00013984,2]
[368673507,1751291432737,-151.0,0.00013984,2]
[368673508,1751291432746,-151.0,0.00013984,2]
[368673509,1751291432755,-151.0,0.00013984,2]
[368673510,1751291432764,-151.0,0.00013984,2]
[368673511,1751291432773,-151.0,0.00013984,2]
[368673512,1751291432783,-151.0,0.00013984,2]
[368673513,1751291432792,-151.0,0.00013984,2]
[368673514,1751291432802,-151.0,0.00013984,2]
[368673515,1751291432812,-151.0,0.00013984,2]
[368673516,1751291432821,-151.0,0.00013984,2]
[368673517,1751291432830,-151.0,0.00013984,2]
[368673518,1751291432840,-151.0,0.00013984,2]
[368673519,1751291432849,-151.0,0.00013984,2]
[368673520,1751291432859,-151.0,0.00013984,2]
[368673521,1751291432869,-151.0,0.00013984,2]
[368673522,1751291432879,-151.67,0.00013988,2]
[368673523,1751291432893,-876.64,0.00013988,2]
[368673524,1751291432903,-876.64,0.00013988,2]
[368673525,1751291432912,-299.63928847,0.00013989,2]
[368673526,1751291432922,-1006.94796775,0.00013989,2]
[368673527,1751291432931,-1303.8823,0.00013992,2]
[368673528,1751291432941,-667.62153993,0.00013993,2]
[368673529,1751291432950,-150.0,0.00013995,2]
[368673530,1751291432960,-150.0,0.00013995,2]
[368673531,1751291432970,-23036.685,0.00013996,2]
[368673532,1751291432979,-14497.57232215,0.00013996,2]
[368673533,1751291432993,-12594.50317775,0.00013996,2]
[368673534,1751291433003,-219.99557395,0.00013996,2]
[368673535,1751291433056,-26013.33642595,0.00013996,2]
[368673536,1751291433067,-1872.30375,0.00013996,2]
[368673537,1751291433078,-156.0208238,0.00013996,2]
[368673538,1751291433090,-24825.9393333,0.00013996,2]
[368673539,1751291433100,-1899.9133416,0.00013996,2]
[368673540,1751291433111,-3614.8445255,0.00013996,2]
[368673541,1751291433121,-155.0,0.00013997,2]
[368673542,1751291433132,-490.0,0.00013997,2]
[368673543,1751291433141,-885.87,0.00013997,2]
[368673544,1751291433152,-490.0,0.00013997,2]
[368673545,1751291433162,-490.0,0.00013997,2]
[368673546,1751291433172,-576.93,0.00013997,2]
[368673547,1751291433182,-1028.84,0.00013997,2]
[368673548,1751291433193,-977.71,0.00013997,2]
[368673549,1751291433202,-760.35,0.00013997,2]
[368673550,1751291433212,-708.72,0.00013997,2]
[368673551,1751291433223,-490.0,0.00013997,2]
[368673552,1751291433232,-2354.6,0.00013997,2]
[368673553,1751291433241,-1272.77,0.00013997,2]
[368673554,1751291433251,-817.03,0.00013997,2]
[368673555,1751291433261,-317.74139416,0.00013997,2]
[368673556,1751291433270,-965.64,0.00013997,2]
[368673557,1751291433280,-581.93,0.00013997,2]
[368673558,1751291433290,-490.0,0.00013997,2]
[368673559,1751291433299,-490.0,0.00013997,2]
[368673560,1751291433308,-490.0,0.00013997,2]
[368673561,1751291433318,-1284.6,0.00013997,2]
[368673562,1751291433327,-882.6,0.00013997,2]
[368673563,1751291433338,-490.0,0.00013997,2]
[368673564,1751291433347,-858.96,0.00013997,2]
[368673565,1751291433357,-490.0,0.00013997,2]
[368673566,1751291433366,-490.0,0.00013997,2]
[368673567,1751291433375,-490.0,0.00013997,2]
[368673568,1751291433385,-490.0,0.00013997,2]
[368673569,1751291433395,-3882.04,0.00013997,2]
[368673570,1751291433404,-641.76,0.00013997,2]
[368673571,1751291433414,-569.25,0.00013997,2]
[368673572,1751291433423,-996.13,0.00013997,2]
[368673573,1751291433432,-561.27,0.00013997,2]
[368673574,1751291433442,-8816.23692135,0.00013998,2]
[368673575,1751291433451,-490.0,0.00013998,2]
[368673576,1751291433460,-1001.41,0.00013998,2]
[368673577,1751291433470,-490.0,0.00013998,2]
[368673578,1751291433479,-1127.85,0.00013998,2]
[368673579,1751291433489,-490.0,0.00013998,2]
[368673580,1751291433498,-490.0,0.00013998,2]
[368673581,1751291433508,-664.2,0.00013998,2]
[368673582,1751291433517,-490.0,0.00013998,2]
[368673583,1751291433527,-490.0,0.00013998,2]
[368673584,1751291433536,-775.07,0.00013998,2]
[368673585,1751291433546,-1396.87,0.00013998,2]
[368673586,1751291433556,-1841.37,0.00013998,2]
[368673587,1751291433565,-490.0,0.00013998,2]
[368673588,1751291433575,-563.11,0.00013998,2]
[368673589,1751291433585,-490.0,0.00013998,2]
[368673590,1751291433594,-490.0,0.00013998,2]
[368673591,1751291433605,-490.0,0.00013998,2]
[368673592,1751291433615,-1514.29,0.00013998,2]
[368673593,1751291433624,-154.55079402,0.00013998,2]
[368673594,1751291433634,-490.0,0.00013998,2]
[368673595,1751291433643,-516.74,0.00013998,2]
[368673596,1751291433653,-490.0,0.00013998,2]
[368673597,1751291433663,-548.12,0.00013998,2]
[368673598,1751291433672,-1237.79,0.00013998,2]
[368673599,1751291433682,-993.5,0.00013998,2]
[368673600,1751291433692,-629.55,0.00013998,2]
[368673601,1751291433702,-1368.84,0.00013998,2]
[368673602,1751291433712,-890.64,0.00013998,2]
[368673603,1751291433723,-1863.09,0.00013998,2]
[368673604,1751291434028,-718.14,0.00013998,2]
[368673605,1751291434053,-2083.39,0.00013998,2]
[368673606,1751291434064,-873.71,0.00013998,2]
[368673607,1751291434074,-490.0,0.00013998,2]
[368673608,1751291434086,-500.0,0.00013998,2]
[368673609,1751291434096,-500.0,0.00013998,2]
[368673610,1751291434106,-344.49583449,0.00013998,2]
[368673611,1751291434117,-171.63167742,0.00013998,2]
[368673612,1751291434126,-500.0,0.00013998,2]
[368673613,1751291434136,-500.0,0.00013998,2]
[368673614,1751291434147,-500.0,0.00013998,2]
[368673615,1751291434158,-500.0,0.00013998,2]
[368673616,1751291434168,-426.47544382,0.00013998,2]
[368673617,1751291434179,-887.45,0.00013998,2]
[368673618,1751291434190,-697.97,0.00013998,2]
[368673619,1751291434200,-490.0,0.00013998,2]
[368673620,1751291434211,-1382.86,0.00013998,2]
[368673621,1751291434220,-945.14,0.00013998,2]
[368673622,1751291434230,-516.12,0.00013998,2]
[368673623,1751291434240,-490.0,0.00013998,2]
[368673624,1751291434250,-490.0,0.00013998,2]
[368673625,1751291434260,-1220.72,0.00013998,2]
[368673626,1751291434270,-665.77,0.00013998,2]
[368673627,1751291434279,-796.8,0.00013998,2]
[368673628,1751291434290,-2709.262478,0.00013998,2]
[368673629,1751291434300,-157.60867,0.00013998,2]
[368673630,1751291434310,-519.35,0.00013998,2]
[368673631,1751291434320,-338.807629,0.00013998,2]
[368673632,1751291434330,-154.8076,0.00013998,2]
[368673633,1751291434341,-587.27,0.00013998,2]
[368673634,1751291434350,-867.05,0.00013998,2]
[368673635,1751291434360,-953.35,0.00013998,2]
[368673636,1751291434370,-3002.582634,0.00013998,2]
[368673637,1751291434380,-490.0,0.00013998,2]
[368673638,1751291434389,-604.67,0.00013998,2]
[368673639,1751291434399,-818.22,0.00013998,2]
[368673640,1751291434408,-694.75,0.00013998,2]
[368673641,1751291434418,-2186.27072341,0.00013998,2]
[368673649,1751291437915,-1155.788706,0.00013899,2]
[368673650,1751291437927,-612.935868,0.00013899,2]
[368673651,1751291437939,-251.26300641,0.00013899,2]
[368673652,1751291438031,-794.8233937,0.00013899,2]
[368673653,1751291438044,-2185.18902589,0.00013899,2]
[368673654,1751291438053,-1183.34,0.00013997,2]
[368673655,1751291438063,-13184.58186785,0.00013998,2]
[368673656,1751291438202,-333.34696352,0.00013998,2]
[368673673,1751291438532,-18966.10814075,0.00013998,2]
[368673675,1751291438543,-2824.41875,0.00013998,2]
[368673677,1751291438554,-306.77223578,0.00013998,2]
[368673679,1751291438564,-4561.47386429,0.00013998,2]
[368673882,1751291440661,-490.0,0.00013997,2]
[368673884,1751291440671,-2739.5,0.00013998,2]
[368673886,1751291440682,-369.40100001,0.00013998,2]
[368673903,1751291440836,864.85686325,0.0001298,2]
[368673906,1751291440863,987.56313675,0.0001298,2]
[368674140,1751291443113,-53849.97502959,0.00013998,2]
[368674479,1751291446442,-205.89904583,0.00013997,2]
[368674985,1751291473956,200.0,0.00013074,2]
[368674986,1751291506717,1243.07,0.00013042,2]
[368674988,1751291535248,-168.533993,0.00013649,2]
[368674989,1751291535279,-250.0,0.00013684,2]
[368674990,1751291535309,-1416.135,0.00013718,2]
[368674991,1751291535339,-175.589,0.00013718,2]
[368674992,1751291535369,-272.73613662,0.00013898,2]
[368674993,1751291535398,-500.0,0.00013973,2]
[368674994,1751291535701,-3822.7768871,0.00013987,2]
[368674995,1751291535897,-10000.0,0.00013987,2]
[368674996,1751291535938,-624.0920338,0.00013987,2]
[368674997,1751291535993,-8751.8159324,0.00013987,2]
[368674998,1751291536003,-624.0920338,0.00013989,2]
[368674999,1751291536134,-375.9079662,0.00013989,2]
[368675000,1751291536144,-6693.82546047,0.00013989,2]
[368675001,1751291536153,-300.0,0.00013989,2]
[368675002,1751291536163,-1000.0,0.00013989,2]
[368675003,1751291536173,-1006.17453953,0.00013989,2]
[368675004,1751291536389,-60.05876239,0.00013989,2]
[368675005,1751291536422,-300.0,0.00013989,2]
[368675006,1751291536455,-500.0,0.00013989,2]
[368675007,1751291536487,-207.4,0.00013989,2]
[368675008,1751291536519,-500.0,0.00013989,2]
[368675009,1751291536550,-300.0,0.00013989,2]
[368675010,1751291536579,-300.0,0.00013989,2]
[368675011,1751291536610,-500.0,0.00013989,2]
[368675012,1751291536639,-151.0,0.00013989,2]
[368675013,1751291536669,-300.0,0.00013989,2]
[368675014,1751291536699,-500.0,0.00013989,2]
[368675015,1751291536728,-500.0,0.00013989,2]
[368675016,1751291536759,-500.0,0.00013989,2]
[368675017,1751291536788,-300.0,0.00013989,2]
[368675018,1751291536874,-668.65185757,0.00013989,2]
[368675019,1751291536905,-500.0,0.00013989,2]
[368675020,1751291536935,-300.0,0.00013989,2]
[368675021,1751291537309,-500.0,0.00013989,2]
[368675022,1751291537861,-300.0,0.00013989,2]
[368675023,1751291537965,-6425.77876008,0.00013996,2]
[368675024,1751291538092,-500.0,0.00013989,2]
[368675025,1751291538170,-9000.0,0.00013996,2]
[368675026,1751291538269,-300.0,0.00013989,2]
[368675027,1751291538336,-9700.0,0.00013996,2]
[368675028,1751291538381,-300.0,0.00013996,2]
[368675029,1751291538397,-9400.0,0.00013996,2]
[368675030,1751291538457,-1676.19323982,0.00013996,2]
[368675031,1751291538489,-163.941397,0.00013996,2]
[368675032,1751291538519,-666.0,0.00013997,2]
[368675033,1751291538550,-284.10095417,0.00013997,2]
[368675034,1751291538582,-1080.86,0.00013997,2]
[368675035,1751291538653,-3776.41,0.00013997,2]
[368675036,1751291538662,-2352.49440901,0.00013997,2]
[368675037,1751291538695,-500.0,0.00013997,2]
[368675038,1751291538720,-4601.50559099,0.00013997,2]
[368675039,1751291538729,-742.78,0.00013997,2]
[368675040,1751291538739,-490.0,0.00013997,2]
[368675041,1751291538748,-490.0,0.00013997,2]
[368675042,1751291538758,-537.06,0.00013997,2]
[368675043,1751291538768,-490.0,0.00013997,2]
[368675044,1751291538777,-1359.09,0.00013997,2]
[368675045,1751291538786,-289.56440901,0.00013997,2]
[368675046,1751291538826,-200.43559099,0.00013997,2]
[368675047,1751291538857,-1451.2,0.00013997,2]
[368675048,1751291538890,-490.0,0.00013997,2]
[368675049,1751291538923,-490.0,0.00013997,2]
[368675050,1751291538955,-490.0,0.00013997,2]
[368675051,1751291538987,-848.79,0.00013997,2]
[368675052,1751291539019,-678.88881802,0.00013997,2]
[368675053,1751291539143,-400.0,0.00013989,2]
[368675054,1751291539153,-701.37118198,0.00013997,2]
[368675055,1751291539163,-525.28,0.00013997,2]
[368675056,1751291539175,-1297.9,0.00013997,2]
[368675057,1751291539184,-490.0,0.00013997,2]
[368675058,1751291539193,-987.62,0.00013997,2]
[368675059,1751291539203,-948.51440901,0.00013997,2]
[368675060,1751291539226,-300.0,0.00013989,2]
[368675061,1751291539259,-200.0,0.00013989,2]
[368675062,1751291539269,-696.13559099,0.00013997,2]
[368675063,1751291539278,-490.0,0.00013997,2]
[368675064,1751291539288,-952.1,0.00013997,2]
[368675065,1751291539297,-1186.21,0.00013997,2]
[368675066,1751291539307,-1140.7,0.00013997,2]
[368675067,1751291539316,-490.0,0.00013997,2]
[368675068,1751291539326,-1442.69,0.00013997,2]
[368675069,1751291539335,-2802.16440901,0.00013998,2]
[368675070,1751291539373,-1605.95405167,0.00013998,2]
[368675071,1751291539403,-999.0,0.00013998,2]
[368675072,1751291539445,-7395.04594833,0.00013998,2]
[368675073,1751291539500,-1676.19323982,0.00013998,2]
[368675074,1751291539532,-163.941397,0.00013998,2]
[368675075,1751291539552,-666.0,0.00013998,2]
[368675076,1751291539585,-284.10095417,0.00013998,2]
[368675077,1751291539600,-1080.86,0.00013998,2]
[368675078,1751291539615,-2257.80881802,0.00013998,2]
[368675079,1751291539779,-500.0,0.00013989,2]
[368675080,1751291539954,-1151.63559099,0.00013998,2]
[368675081,1751291539970,-490.0,0.00013998,2]
[368675082,1751291539995,-490.0,0.00013998,2]
[368675083,1751291540035,-500.0,0.00013989,2]
[368675084,1751291540087,-848.79,0.00013998,2]
[368675085,1751291540114,-1380.26,0.00013998,2]
[368675086,1751291540306,-500.0,0.00013989,2]
[368675087,1751291540316,-1105.95405167,0.00013998,2]
[368675088,1751291540342,-999.0,0.00013998,2]
[368675089,1751291540369,-4790.09189666,0.00013998,2]
[368675090,1751291540411,-10000.0,0.00013998,2]
[368675091,1751291540444,-10000.0,0.00013998,2]
[368675092,1751291540492,-160.0,0.00013989,2]
[368675093,1751291540501,-340.0,0.00013998,2]
[368675094,1751291540527,-9000.0,0.00013998,2]
[368675095,1751291540572,-500.0,0.00013998,2]
[368675096,1751291540608,-9000.0,0.00013998,2]
[368675097,1751291540668,-500.0,0.00013989,2]
[368675098,1751291540679,-151.0,0.00013989,2]
[368675099,1751291540688,-500.0,0.00013989,2]
[368675100,1751291540698,-8849.0,0.00013998,2]
[368675101,1751291540819,-10000.0,0.00013998,2]
[368675102,1751291540908,-10000.0,0.00013998,2]
[368675103,1751291540933,-10000.0,0.00013998,2]
[368675104,1751291540971,-10000.0,0.00013998,2]
[368675105,1751291541009,-10000.0,0.00013998,2]
[368675106,1751291541041,-10000.0,0.00013998,2]
[368675107,1751291541446,-10000.0,0.00013998,2]
[368675108,1751291541538,-500.0,0.00013989,2]
[368675109,1751291541548,-151.0,0.00013989,2]
[368675110,1751291541557,-9349.0,0.00013998,2]
[368675111,1751291541589,-10000.0,0.00013998,2]
[368675112,1751291541872,-10000.0,0.00013998,2]
[368675114,1751291599794,-304.23,0.00013699,2]
[368675115,1751291599830,-400.57292403,0.00013898,2]
[368675116,1751291599861,-209.54225796,0.000139,2]
[368675117,1751291599892,-209.54225793,0.000139,2]
[368675118,1751291599923,-209.54225793,0.000139,2]
[368675119,1751291599953,-400.57292395,0.00013929,2]
[368675120,1751291599985,-400.57292395,0.00013959,2]
[368675121,1751291600015,-163.941398,0.00013986,2]
[368675122,1751291600044,-300.0,0.00013988,2]
[368675123,1751291600075,-500.0,0.00013989,2]
[368675124,1751291600105,-151.20431568,0.00013989,2]
[368675125,1751291600136,-500.0,0.00013989,2]
[368675126,1751291600171,-500.0,0.00013989,2]
[368675127,1751291600200,-500.0,0.00013989,2]
[368675128,1751291600229,-0.55748114,0.00013989,2]
[368675129,1751291600470,-499.44251886,0.00013989,2]
[368675130,1751291600502,-500.0,0.00013989,2]
[368675131,1751291600531,-500.0,0.00013989,2]
[368675132,1751291600564,-500.0,0.00013989,2]
[368675133,1751291600594,-152.60723061,0.00013989,2]
[368675134,1751291600624,-500.0,0.00013989,2]
[368675135,1751291600655,-500.0,0.00013989,2]
[368675136,1751291600685,-500.0,0.00013989,2]
[368675137,1751291600716,-500.0,0.00013989,2]
[368675138,1751291600747,-500.0,0.00013989,2]
[368675139,1751291600777,-195.90050106,0.00013989,2]
[368675140,1751291600919,-304.09949894,0.00013989,2]
[368675141,1751291600950,-500.0,0.00013989,2]
[368675142,1751291600981,-500.0,0.00013989,2]
[368675143,1751291601013,-500.0,0.00013989,2]
[368675144,1751291601044,-450.49058807,0.00013989,2]
[368675145,1751291601079,-500.0,0.00013989,2]
[368675146,1751291601112,-500.0,0.00013989,2]
[368675147,1751291601145,-500.0,0.00013989,2]
[368675148,1751291601179,-400.57292395,0.0001399,2]
[368675149,1751291602471,-500.0,0.00013992,2]
[368675150,1751291602517,-400.57292395,0.00013992,2]
[368675151,1751291602535,-1689.67397808,0.00013992,2]
[368675152,1751291602576,-10000.0,0.00013992,2]
[368675153,1751291602622,-209.54225793,0.000139,2]
[368675154,1751291602773,-9790.45774207,0.00013992,2]
[368675155,1751291602854,-10000.0,0.00013992,2]
[368675156,1751291602889,-743.1736441,0.00013992,2]
[368675157,1751291603008,-8513.6527118,0.00013992,2]
[368675158,1751291603018,-603.32,0.00013997,2]
[368675159,1751291603029,-139.8536441,0.00013997,2]
[368675160,1751291603059,-350.1463559,0.00013997,2]
[368675161,1751291603069,-1785.46,0.00013997,2]
[368675162,1751291603082,-6276.25,0.00013997,2]
[368675163,1751291603093,-853.53,0.00013997,2]
[368675164,1751291603103,-734.6136441,0.00013997,2]
[368675165,1751291603137,-251.3563559,0.00013997,2]
[368675166,1751291603147,-2323.22,0.00013997,2]
[368675167,1751291603160,-1084.47,0.00013997,2]
[368675168,1751291603171,-490.0,0.00013997,2]
[368675169,1751291603182,-490.0,0.00013997,2]
[368675170,1751291603192,-1996.59,0.00013997,2]
[368675171,1751291603202,-936.97,0.00013997,2]
[368675172,1751291603211,-2256.49,0.00013997,2]
[368675173,1751291603221,-170.9036441,0.00013997,2]
[368675174,1751291603269,-319.0963559,0.00013997,2]
[368675175,1751291603283,-850.47,0.00013997,2]
[368675176,1751291603293,-1276.66,0.00013997,2]
[368675177,1751291603304,-668.89,0.00013997,2]
[368675178,1751291603314,-782.99,0.00013997,2]
[368675179,1751291603324,-490.0,0.00013997,2]
[368675180,1751291603333,-1325.24,0.00013997,2]
[368675181,1751291603343,-1669.93,0.00013997,2]
[368675182,1751291603353,-578.67,0.00013997,2]
[368675183,1751291603362,-1240.15,0.00013997,2]
[368675184,1751291603371,-797.9036441,0.00013997,2]
[368675185,1751291603397,-107.8563559,0.00013997,2]
[368675186,1751291603407,-1013.19,0.00013997,2]
[368675187,1751291603417,-809.85,0.00013997,2]
[368675188,1751291603427,-719.26,0.00013997,2]
[368675189,1751291603436,-490.0,0.00013997,2]
[368675190,1751291603447,-6859.8436441,0.00013998,2]
[368675191,1751291603463,-209.54225793,0.00013998,2]
[368675192,1751291603485,-9580.91548414,0.00013998,2]
[368675193,1751291603501,-10000.0,0.00013998,2]
[368675194,1751291603526,-10000.0,0.00013998,2]
[368675195,1751291603556,-9256.8263559,0.00013998,2]
[368675196,1751291604493,-10000.0,0.00013998,2]
[368675197,1751291604610,-973.36,0.00013997,2]
[368675198,1751291604647,-8053.28,0.00013998,2]
[368675199,1751291604849,-10000.0,0.00013998,2]
[368675200,1751291605003,-494.61,0.00013997,2]
[368675201,1751291605046,-9010.78,0.00013998,2]
[368675202,1751291605169,-10000.0,0.00013998,2]
[368675203,1751291605316,-10000.0,0.00013998,2]
[368675204,1751291605506,-10000.0,0.00013998,2]
[368675205,1751291605655,-10000.0,0.00013998,2]
[368675206,1751291605827,-10000.0,0.00013998,2]
[368675207,1751291605965,-10000.0,0.00013998,2]
[368675208,1751291606122,-10000.0,0.00013998,2]
[368675209,1751291606274,-10000.0,0.00013998,2]
[368675210,1751291607277,-209.54225793,0.000139,2]
[368675211,1751291607828,-9580.91548414,0.00013998,2]
[368675212,1751291607871,-10000.0,0.00013998,2]
[368675213,1751291607999,-10000.0,0.00013998,2]
[368675214,1751291608046,-10000.0,0.00013998,2]
[368675215,1751291608083,-10000.0,0.00013998,2]
[368675216,1751291608103,-10000.0,0.00013998,2]
[368675217,1751291608153,-10000.0,0.00013998,2]
[368675218,1751291608204,-10000.0,0.00013998,2]
[368675219,1751291608241,-10000.0,0.00013998,2]
[368675220,1751291608271,-10000.0,0.00013998,2]
[368675221,1751291608298,-10000.0,0.00013998,2]
[368675222,1751291608457,-10000.0,0.00013998,2]
[368675223,1751291608656,-10000.0,0.00013998,2]
[368675224,1751291608758,-10000.0,0.00013998,2]
[368675225,1751291608894,-10000.0,0.00013998,2]
[368675226,1751291609064,-10000.0,0.00013998,2]
[368675227,1751291609219,-845.83,0.00013997,2]
[368675228,1751291609259,-8308.34,0.00013998,2]
[368675229,1751291609358,-10000.0,0.00013998,2]
[368675230,1751291609704,-10000.0,0.00013998,2]
[368675231,1751291609848,-10000.0,0.00013998,2]
[368675232,1751291610061,-10000.0,0.00013998,2]
[368675233,1751291610207,-10000.0,0.00013998,2]
[368675234,1751291610382,-10000.0,0.00013998,2]
[368675235,1751291610494,-10000.0,0.00013998,2]
[368675236,1751291610855,-10000.0,0.00013998,2]
[368675237,1751291611009,-10000.0,0.00013998,2]
[368675238,1751291611576,-209.54225793,0.000139,2]
[368675239,1751291611611,-9790.45774207,0.00013998,2]
[368675240,1751291611629,-10000.0,0.00013998,2]
[368675241,1751291611662,-209.54225793,0.00013998,2]
[368675242,1751291611693,-9580.91548414,0.00013998,2]
[368675243,1751291611728,-10000.0,0.00013998,2]
[368675244,1751291611754,-10000.0,0.00013998,2]
[368675245,1751291611865,-10000.0,0.00013998,2]
[368675246,1751291612004,-10000.0,0.00013998,2]
[368675247,1751291663419,-163.941398,0.00013826,2]
[368675248,1751291663450,-150.0,0.00013865,2]
[368675249,1751291663480,-209.54225793,0.000139,2]
[368675250,1751291663509,-209.54225793,0.000139,2]
[368675251,1751291663539,-209.54225793,0.000139,2]
[368675252,1751291663571,-209.54225793,0.000139,2]
[368675253,1751291663602,-209.54225793,0.000139,2]
[368675254,1751291663632,-209.54225793,0.000139,2]
[368675255,1751291663662,-209.54225793,0.000139,2]
[368675256,1751291663691,-209.54225793,0.000139,2]
[368675257,1751291663721,-209.54225793,0.000139,2]
[368675258,1751291663750,-209.54225793,0.000139,2]
[368675259,1751291663780,-2583.1517397,0.00013989,2]
[368675260,1751291664230,-14.968566,0.00013989,2]
[368675261,1751291664261,-470.14217419,0.00013997,2]
[368675262,1751291664291,-1231.08,0.00013997,2]
[368675263,1751291664320,-1737.36,0.00013997,2]
[368675264,1751291664349,-882.52,0.00013997,2]
[368675265,1751291664378,-638.03,0.00013997,2]
[368675266,1751291664468,-490.0,0.00013997,2]
[368675267,1751291664497,-913.63,0.00013997,2]
[368675268,1751291664528,-490.0,0.00013997,2]
[368675269,1751291664556,-1579.3,0.00013997,2]
[368675270,1751291664585,-1495.99,0.00013997,2]
[368675271,1751291664757,-490.0,0.00013997,2]
[368675272,1751291664787,-784.13,0.00013997,2]
[368675273,1751291664818,-1616.04,0.00013997,2]
[368675274,1751291664847,-859.09,0.00013997,2]
[368675275,1751291664877,-815.81,0.00013997,2]
[368675276,1751291664907,-379.86,0.00013997,2]
[368675277,1751291664980,-110.14,0.00013997,2]
[368675278,1751291665010,-830.92,0.00013997,2]
[368675279,1751291665041,-615.02,0.00013997,2]
[368675280,1751291665070,-1673.67,0.00013997,2]
[368675281,1751291665101,-490.0,0.00013997,2]
[368675282,1751291665130,-634.45,0.00013997,2]
[368675283,1751291665162,-490.0,0.00013997,2]
[368675284,1751291665342,-778.64,0.00013997,2]
[368675285,1751291665593,-1557.28,0.00013997,2]
[368675286,1751291666068,-3114.56,0.00013997,2]
[368675287,1751291666331,-3770.88,0.00013997,2]
[368675288,1751291666484,-3720.29,0.00013997,2]
[368675289,1751291666698,-2670.73,0.00013997,2]
[368675290,1751291666728,-886.31,0.00013997,2]
[368675291,1751291666758,-490.0,0.00013997,2]
[368675292,1751291666930,-2204.05923034,0.00013997,2]
[368675293,1751291667391,-5938.54785528,0.00013992,2]
[368675294,1751291667467,-3770.88,0.00013992,2]
[368675295,1751291667489,-2458.24,0.00013992,2]
[368675296,1751291667706,-209.54225793,0.000139,2]
[368675297,1751291667736,-3510.74774207,0.00013992,2]
[368675298,1751291667751,-2559.42,0.00013992,2]